[Event "Titled Tuesday Blitz May 9 Early 2023"]
[White "Nguyen, Hong Anh"]
[Black "Smith, Shreyas"]
[WhiteFideId "12406732"]
[BlackFideId "7400713"]
[WhiteElo "2054"]
[BlackElo "2151"]
[Result "1-0"]
[Round "06"]
[TimeControl "180+2"]
[Date "2023.05.09"]
[WhiteClock "0:00:50"]
[BlackClock "0:00:00"]

1. d4 {[%clk 0:02:59]}  d5 {[%clk 0:02:57]} 2. c4 {[%clk 0:02:59]}  e6 {[%clk 0:02:58]} 3. Nc3 {[%clk 0:02:59]}  a6 {[%clk 0:02:58]} 4. cxd5 {[%clk 0:02:54]}  exd5 {[%clk 0:02:59]} 5. Nf3 {[%clk 0:02:52]}  c6 {[%clk 0:02:58]} 6. Bg5 {[%clk 0:02:51]}  Be7 {[%clk 0:02:56]} 7. Bxe7 {[%clk 0:02:50]}  Nxe7 {[%clk 0:02:56]} 8. e3 {[%clk 0:02:51]}  O-O {[%clk 0:02:55]} 9. Bd3 {[%clk 0:02:52]}  Bf5 {[%clk 0:02:55]} 10. O-O {[%clk 0:02:52]}  Bxd3 {[%clk 0:02:44]} 11. Qxd3 {[%clk 0:02:51]}  Nd7 {[%clk 0:02:44]} 12. b4 {[%clk 0:02:48]}  g6 {[%clk 0:02:24]} 13. a4 {[%clk 0:02:44]}  Nf5 {[%clk 0:01:33]} 14. h3 {[%clk 0:02:33]}  Nd6 {[%clk 0:01:32]} 15. b5 {[%clk 0:02:27]}  axb5 {[%clk 0:01:30]} 16. axb5 {[%clk 0:02:26]}  Qe7 {[%clk 0:01:30]} 17. bxc6 {[%clk 0:02:17]}  bxc6 {[%clk 0:01:31]} 18. Nd2 {[%clk 0:02:14]}  f5 {[%clk 0:01:23]} 19. Ra6 {[%clk 0:02:13]}  Rac8 {[%clk 0:01:00]} 20. Ra7 {[%clk 0:02:02]}  Qe6 {[%clk 0:00:50]} 21. Rfa1 {[%clk 0:01:51]}  f4 {[%clk 0:00:36]} 22. exf4 {[%clk 0:01:42]}  Rxf4 {[%clk 0:00:34]} 23. Ne2 {[%clk 0:01:40]}  Rf7 {[%clk 0:00:32]} 24. Nf3 {[%clk 0:01:36]}  Qf6 {[%clk 0:00:30]} 25. Ng3 {[%clk 0:01:30]}  Re8 {[%clk 0:00:25]} 26. Rc7 {[%clk 0:01:27]}  Ne4 {[%clk 0:00:23]} 27. Raa7 {[%clk 0:01:20]}  Ree7 {[%clk 0:00:21]} 28. Ra6 {[%clk 0:01:08]}  Qd6 {[%clk 0:00:20]} 29. Rcxc6 {[%clk 0:01:07]}  Qf4 {[%clk 0:00:19]} 30. Ne2 {[%clk 0:01:04]}  Qh6 {[%clk 0:00:17]} 31. Rc8+ {[%clk 0:01:00]}  Kg7 {[%clk 0:00:16]} 32. Raa8 {[%clk 0:01:00]}  Ndf6 {[%clk 0:00:16]} 33. Ne5 {[%clk 0:00:58]}  Qh4 {[%clk 0:00:09]} 34. Ng3 {[%clk 0:00:56]}  Nxg3 {[%clk 0:00:07]} 35. fxg3 {[%clk 0:00:56]}  Qg5 {[%clk 0:00:07]} 36. Nxf7 {[%clk 0:00:55]}  Re1+ {[%clk 0:00:06]} 37. Kh2 {[%clk 0:00:54]}  Kxf7 {[%clk 0:00:03]} 38. Rc7+ {[%clk 0:00:54]}  Re7 {[%clk 0:00:02]} 39. Rxe7+ {[%clk 0:00:53]}  Kxe7 {[%clk 0:00:03]} 40. Ra7+ {[%clk 0:00:52]}  Kf8 {[%clk 0:00:03]} 41. Qa3+ {[%clk 0:00:51]}  Kg8 {[%clk 0:00:00]} 42. Qe7 {[%clk 0:00:50]} 1-0


[Site "https://www.chess.com"]

[Event "Titled Tuesday Blitz May 9 Early 2023"]
[White "Shvedova, Alexandra"]
[Black "Winkels, Marcel"]
[WhiteFideId "54154782"]
[BlackFideId "1003887"]
[WhiteElo "1973"]
[BlackElo "1900"]
[Result "1-0"]
[Round "06"]
[TimeControl "180+2"]
[Date "2023.05.09"]
[WhiteClock "0:01:07"]
[BlackClock "0:00:00"]

1. d4 {[%clk 0:03:00]}  Nf6 {[%clk 0:03:00]} 2. c4 {[%clk 0:03:00]}  g6 {[%clk 0:03:00]} 3. Nf3 {[%clk 0:03:01]}  d5 {[%clk 0:03:00]} 4. cxd5 {[%clk 0:03:00]}  Bg7 {[%clk 0:02:57]} 5. g3 {[%clk 0:02:57]}  O-O {[%clk 0:02:55]} 6. Bg2 {[%clk 0:02:57]}  Nxd5 {[%clk 0:02:55]} 7. O-O {[%clk 0:02:52]}  Nb6 {[%clk 0:02:54]} 8. Nc3 {[%clk 0:02:50]}  Nc6 {[%clk 0:02:55]} 9. e3 {[%clk 0:02:45]}  Re8 {[%clk 0:02:53]} 10. a3 {[%clk 0:02:40]}  e5 {[%clk 0:02:52]} 11. d5 {[%clk 0:02:36]}  Na5 {[%clk 0:02:49]} 12. e4 {[%clk 0:02:33]}  Nac4 {[%clk 0:02:47]} 13. b3 {[%clk 0:02:29]}  Nd6 {[%clk 0:02:44]} 14. Qe2 {[%clk 0:02:24]}  Bg4 {[%clk 0:02:33]} 15. h3 {[%clk 0:02:23]}  Bxf3 {[%clk 0:02:32]} 16. Bxf3 {[%clk 0:02:24]}  c6 {[%clk 0:02:31]} 17. Rd1 {[%clk 0:02:21]}  cxd5 {[%clk 0:02:20]} 18. Nxd5 {[%clk 0:02:21]}  Nxd5 {[%clk 0:02:20]} 19. Rxd5 {[%clk 0:02:22]}  Qe7 {[%clk 0:02:10]} 20. Be3 {[%clk 0:02:21]}  b6 {[%clk 0:01:52]} 21. Rad1 {[%clk 0:02:20]}  Red8 {[%clk 0:01:51]} 22. Qd2 {[%clk 0:02:15]}  Nb7 {[%clk 0:01:49]} 23. Bg5 {[%clk 0:02:11]}  f6 {[%clk 0:01:39]} 24. Be3 {[%clk 0:02:08]}  Bf8 {[%clk 0:01:30]} 25. Be2 {[%clk 0:02:02]}  Rxd5 {[%clk 0:01:22]} 26. Qxd5+ {[%clk 0:02:02]}  Kh8 {[%clk 0:01:09]} 27. Bc4 {[%clk 0:02:00]}  Bg7 {[%clk 0:01:05]} 28. Qd7 {[%clk 0:01:46]}  Re8 {[%clk 0:00:44]} 29. Qxe7 {[%clk 0:01:38]}  Rxe7 {[%clk 0:00:44]} 30. b4 {[%clk 0:01:39]}  h5 {[%clk 0:00:39]} 31. h4 {[%clk 0:01:33]}  Rc7 {[%clk 0:00:38]} 32. Bb5 {[%clk 0:01:28]}  Kh7 {[%clk 0:00:29]} 33. Ba6 {[%clk 0:01:25]}  Bh6 {[%clk 0:00:23]} 34. f4 {[%clk 0:01:21]}  Kg7 {[%clk 0:00:19]} 35. Kf2 {[%clk 0:01:20]}  Kf7 {[%clk 0:00:17]} 36. Ke2 {[%clk 0:01:14]}  Ke6 {[%clk 0:00:13]} 37. f5+ {[%clk 0:01:13]}  gxf5 {[%clk 0:00:10]} 38. Bxh6 {[%clk 0:01:14]}  fxe4 {[%clk 0:00:09]} 39. Bf8 {[%clk 0:01:09]}  Rf7 {[%clk 0:00:00]} 40. Bc4+ {[%clk 0:01:07]} 1-0


[Site "https://www.chess.com"]

[Event "Titled Tuesday Blitz May 9 Early 2023"]
[White "Omariev, Maksim"]
[Black "wqws"]
[WhiteFideId "4193423"]
[WhiteElo "2374"]
[BlackElo "2536"]
[Result "0-1"]
[Round "06"]
[TimeControl "180+2"]
[Date "2023.05.09"]
[WhiteClock "0:00:00"]
[BlackClock "0:00:28"]

1. g4 {[%clk 0:02:48]}  d5 {[%clk 0:02:59]} 2. Bg2 {[%clk 0:02:47]}  c6 {[%clk 0:02:57]} 3. h3 {[%clk 0:02:47]}  e5 {[%clk 0:02:58]} 4. d4 {[%clk 0:02:46]}  e4 {[%clk 0:02:57]} 5. c4 {[%clk 0:02:46]}  h5 {[%clk 0:02:57]} 6. g5 {[%clk 0:02:46]}  Bd6 {[%clk 0:02:54]} 7. Nc3 {[%clk 0:02:46]}  Ne7 {[%clk 0:02:55]} 8. Qb3 {[%clk 0:02:44]}  O-O {[%clk 0:02:53]} 9. Bd2 {[%clk 0:02:34]}  a5 {[%clk 0:02:46]} 10. cxd5 {[%clk 0:02:34]}  cxd5 {[%clk 0:02:43]} 11. Nxd5 {[%clk 0:02:27]}  Nbc6 {[%clk 0:02:39]} 12. e3 {[%clk 0:02:14]}  Be6 {[%clk 0:02:34]} 13. Bxe4 {[%clk 0:02:04]}  a4 {[%clk 0:02:33]} 14. Nxe7+ {[%clk 0:02:04]}  Qxe7 {[%clk 0:02:27]} 15. Qc2 {[%clk 0:01:40]}  Rac8 {[%clk 0:01:59]} 16. Bc3 {[%clk 0:01:38]}  a3 {[%clk 0:01:53]} 17. Qe2 {[%clk 0:01:16]}  axb2 {[%clk 0:01:50]} 18. Bxb2 {[%clk 0:01:14]}  Bb4+ {[%clk 0:01:48]} 19. Kf1 {[%clk 0:01:13]}  Bc4 {[%clk 0:01:42]} 20. Bd3 {[%clk 0:01:04]}  Na5 {[%clk 0:01:34]} 21. Nf3 {[%clk 0:00:55]}  Bxd3 {[%clk 0:01:05]} 22. Qxd3 {[%clk 0:00:56]}  Nc4 {[%clk 0:01:04]} 23. Rb1 {[%clk 0:00:53]}  Rfe8 {[%clk 0:00:57]} 24. Kg2 {[%clk 0:00:51]}  Bd6 {[%clk 0:00:47]} 25. g6 {[%clk 0:00:48]}  Rf8 {[%clk 0:00:36]} 26. Ba1 {[%clk 0:00:40]}  fxg6 {[%clk 0:00:36]} 27. Qxg6 {[%clk 0:00:41]}  Rf6 {[%clk 0:00:36]} 28. Qxh5 {[%clk 0:00:40]}  Rcf8 {[%clk 0:00:35]} 29. Qd5+ {[%clk 0:00:39]}  Qf7 {[%clk 0:00:29]} 30. Qxf7+ {[%clk 0:00:26]}  R6xf7 {[%clk 0:00:28]} 31. Ne5 {[%clk 0:00:00]}  Rxf2+ {[%clk 0:00:28]} 0-1


[Site "https://www.chess.com"]

[Event "Titled Tuesday Blitz May 9 Early 2023"]
[White "Yelisieiev, Yevhenii"]
[Black "Harriott, Tyrell"]
[WhiteFideId "14139642"]
[BlackFideId "2086484"]
[WhiteElo "2403"]
[BlackElo "2107"]
[Result "1-0"]
[Round "06"]
[TimeControl "180+2"]
[Date "2023.05.09"]
[WhiteClock "0:00:16"]
[BlackClock "0:00:03"]

1. d4 {[%clk 0:03:00]}  e6 {[%clk 0:02:59]} 2. Nf3 {[%clk 0:03:01]}  d5 {[%clk 0:03:00]} 3. e3 {[%clk 0:02:58]}  Bd6 {[%clk 0:02:59]} 4. Bd3 {[%clk 0:02:58]}  f5 {[%clk 0:02:59]} 5. b3 {[%clk 0:02:54]}  c6 {[%clk 0:02:57]} 6. Bb2 {[%clk 0:02:55]}  Nf6 {[%clk 0:02:56]} 7. Ne5 {[%clk 0:02:55]}  Ne4 {[%clk 0:02:55]} 8. O-O {[%clk 0:02:54]}  O-O {[%clk 0:02:54]} 9. f3 {[%clk 0:02:50]}  Ng5 {[%clk 0:02:54]} 10. Nd2 {[%clk 0:02:47]}  f4 {[%clk 0:02:49]} 11. e4 {[%clk 0:02:35]}  Bc7 {[%clk 0:02:37]} 12. Qe2 {[%clk 0:02:26]}  Qf6 {[%clk 0:02:36]} 13. Rae1 {[%clk 0:02:14]}  Qh6 {[%clk 0:02:27]} 14. c4 {[%clk 0:02:08]}  Nd7 {[%clk 0:02:21]} 15. Ng4 {[%clk 0:01:42]}  Qh5 {[%clk 0:02:18]} 16. exd5 {[%clk 0:01:41]}  exd5 {[%clk 0:02:16]} 17. Ba3 {[%clk 0:01:39]}  Rd8 {[%clk 0:02:01]} 18. Qe7 {[%clk 0:01:22]}  Ba5 {[%clk 0:01:43]} 19. b4 {[%clk 0:01:19]}  Bc7 {[%clk 0:01:38]} 20. Rf2 {[%clk 0:00:54]}  a5 {[%clk 0:01:09]} 21. b5 {[%clk 0:00:53]}  Bb6 {[%clk 0:01:07]} 22. Nb3 {[%clk 0:00:49]}  a4 {[%clk 0:01:06]} 23. Nc5 {[%clk 0:00:49]}  Nxc5 {[%clk 0:00:57]} 24. dxc5 {[%clk 0:00:43]}  Ba5 {[%clk 0:00:57]} 25. Re5 {[%clk 0:00:42]}  Bxg4 {[%clk 0:00:55]} 26. Rxg5 {[%clk 0:00:39]}  Qh6 {[%clk 0:00:29]} 27. Bb2 {[%clk 0:00:33]}  g6 {[%clk 0:00:21]} 28. Rxg4 {[%clk 0:00:25]}  Re8 {[%clk 0:00:20]} 29. Qf6 {[%clk 0:00:23]}  d4 {[%clk 0:00:19]} 30. Bxd4 {[%clk 0:00:21]}  Re1+ {[%clk 0:00:14]} 31. Rf1 {[%clk 0:00:19]}  Rae8 {[%clk 0:00:13]} 32. Qh8+ {[%clk 0:00:18]}  Kf7 {[%clk 0:00:13]} 33. Qf6+ {[%clk 0:00:18]}  Kg8 {[%clk 0:00:14]} 34. Rxf4 {[%clk 0:00:17]}  Rxf1+ {[%clk 0:00:12]} 35. Bxf1 {[%clk 0:00:18]}  Qxf4 {[%clk 0:00:03]} 36. Qg7# {[%clk 0:00:16]} 1-0


[Site "https://www.chess.com"]

[Event "Titled Tuesday Blitz May 9 Early 2023"]
[White "Yeritsyan, Hayk"]
[Black "Umarov, Sabir"]
[WhiteFideId "13307320"]
[BlackFideId "14200538"]
[WhiteElo "2500"]
[BlackElo "2358"]
[Result "0-1"]
[Round "06"]
[TimeControl "180+2"]
[Date "2023.05.09"]
[WhiteClock "0:00:05"]
[BlackClock "0:00:05"]

1. e3 {[%clk 0:02:44]}  g6 {[%clk 0:02:56]} 2. Nf3 {[%clk 0:02:32]}  Bg7 {[%clk 0:02:57]} 3. d4 {[%clk 0:02:25]}  d5 {[%clk 0:02:54]} 4. c4 {[%clk 0:02:17]}  c6 {[%clk 0:02:53]} 5. Nc3 {[%clk 0:02:16]}  Nf6 {[%clk 0:02:52]} 6. Be2 {[%clk 0:02:07]}  O-O {[%clk 0:02:50]} 7. O-O {[%clk 0:02:06]}  Re8 {[%clk 0:02:37]} 8. Ne5 {[%clk 0:02:02]}  Nbd7 {[%clk 0:02:36]} 9. f4 {[%clk 0:02:02]}  e6 {[%clk 0:02:33]} 10. b3 {[%clk 0:02:01]}  Nxe5 {[%clk 0:02:19]} 11. fxe5 {[%clk 0:01:59]}  Nd7 {[%clk 0:02:18]} 12. Ba3 {[%clk 0:01:48]}  f6 {[%clk 0:02:17]} 13. exf6 {[%clk 0:01:37]}  Nxf6 {[%clk 0:02:16]} 14. Qd3 {[%clk 0:01:35]}  e5 {[%clk 0:01:51]} 15. dxe5 {[%clk 0:01:32]}  Rxe5 {[%clk 0:01:49]} 16. Rad1 {[%clk 0:01:28]}  Bf5 {[%clk 0:01:46]} 17. Qd2 {[%clk 0:01:26]}  Qb6 {[%clk 0:01:31]} 18. Bd6 {[%clk 0:01:16]}  Re6 {[%clk 0:01:19]} 19. c5 {[%clk 0:01:15]}  Qd8 {[%clk 0:01:15]} 20. Bd3 {[%clk 0:01:10]}  Bxd3 {[%clk 0:01:09]} 21. Qxd3 {[%clk 0:01:11]}  Rxd6 {[%clk 0:01:06]} 22. cxd6 {[%clk 0:01:10]}  Qxd6 {[%clk 0:01:07]} 23. e4 {[%clk 0:01:10]}  Qc5+ {[%clk 0:01:05]} 24. Kh1 {[%clk 0:01:10]}  Ng4 {[%clk 0:01:03]} 25. Ne2 {[%clk 0:00:56]}  dxe4 {[%clk 0:00:31]} 26. Qxe4 {[%clk 0:00:46]}  Nf2+ {[%clk 0:00:28]} 27. Rxf2 {[%clk 0:00:45]}  Qxf2 {[%clk 0:00:29]} 28. Ng3 {[%clk 0:00:42]}  Rf8 {[%clk 0:00:27]} 29. a4 {[%clk 0:00:33]}  Qf4 {[%clk 0:00:22]} 30. Qe6+ {[%clk 0:00:32]}  Qf7 {[%clk 0:00:22]} 31. Qxf7+ {[%clk 0:00:29]}  Rxf7 {[%clk 0:00:21]} 32. h3 {[%clk 0:00:28]}  Be5 {[%clk 0:00:20]} 33. Ne4 {[%clk 0:00:27]}  Kg7 {[%clk 0:00:20]} 34. Nc5 {[%clk 0:00:28]}  Bg3 {[%clk 0:00:19]} 35. Ne4 {[%clk 0:00:25]}  Bh4 {[%clk 0:00:18]} 36. Kg1 {[%clk 0:00:24]}  Re7 {[%clk 0:00:16]} 37. Nc5 {[%clk 0:00:23]}  b6 {[%clk 0:00:15]} 38. Nd3 {[%clk 0:00:20]}  Bg3 {[%clk 0:00:15]} 39. Nb2 {[%clk 0:00:18]}  c5 {[%clk 0:00:14]} 40. Nc4 {[%clk 0:00:18]}  Re2 {[%clk 0:00:13]} 41. Rf1 {[%clk 0:00:13]}  h5 {[%clk 0:00:13]} 42. a5 {[%clk 0:00:10]}  b5 {[%clk 0:00:12]} 43. Na3 {[%clk 0:00:10]}  a6 {[%clk 0:00:08]} 44. Rd1 {[%clk 0:00:09]}  h4 {[%clk 0:00:08]} 45. Nb1 {[%clk 0:00:08]}  Rb2 {[%clk 0:00:07]} 46. Nd2 {[%clk 0:00:08]}  Kf6 {[%clk 0:00:07]} 47. Ne4+ {[%clk 0:00:08]}  Ke5 {[%clk 0:00:06]} 48. Nxc5 {[%clk 0:00:08]}  Bf2+ {[%clk 0:00:05]} 49. Kh1 {[%clk 0:00:08]}  Bxc5 {[%clk 0:00:05]} 50. Kh2 {[%clk 0:00:07]}  Bf2 {[%clk 0:00:05]} 51. Rd3 {[%clk 0:00:06]}  Bg3+ {[%clk 0:00:05]} 52. Kg1 {[%clk 0:00:05]}  Rb1+ {[%clk 0:00:05]} 0-1


[Site "https://www.chess.com"]

[Event "Titled Tuesday Blitz May 9 Early 2023"]
[White "Baches Garcia, Guillermo"]
[Black "Korpics, Zsolt"]
[WhiteFideId "2209764"]
[BlackFideId "705241"]
[WhiteElo "2498"]
[BlackElo "2358"]
[Result "1-0"]
[Round "06"]
[TimeControl "180+2"]
[Date "2023.05.09"]
[WhiteClock "0:00:15"]
[BlackClock "0:00:00"]

1. e4 {[%clk 0:03:00]}  c5 {[%clk 0:03:00]} 2. Nf3 {[%clk 0:02:59]}  e6 {[%clk 0:03:00]} 3. d4 {[%clk 0:03:00]}  cxd4 {[%clk 0:03:00]} 4. Nxd4 {[%clk 0:03:00]}  Nc6 {[%clk 0:03:00]} 5. Nc3 {[%clk 0:03:00]}  Qc7 {[%clk 0:03:01]} 6. Be3 {[%clk 0:03:00]}  a6 {[%clk 0:03:01]} 7. g4 {[%clk 0:03:01]}  Ne5 {[%clk 0:02:40]} 8. f4 {[%clk 0:02:52]}  Nc4 {[%clk 0:02:34]} 9. Bxc4 {[%clk 0:02:51]}  Qxc4 {[%clk 0:02:35]} 10. Qf3 {[%clk 0:02:49]}  Bb4 {[%clk 0:02:27]} 11. Ne2 {[%clk 0:02:48]}  Ne7 {[%clk 0:02:19]} 12. O-O-O {[%clk 0:02:44]}  b5 {[%clk 0:02:16]} 13. e5 {[%clk 0:02:35]}  Qc6 {[%clk 0:02:15]} 14. Qf2 {[%clk 0:02:24]}  Bb7 {[%clk 0:02:10]} 15. a3 {[%clk 0:02:09]}  Bxc3 {[%clk 0:01:58]} 16. Nxc3 {[%clk 0:02:08]}  Qxh1 {[%clk 0:01:39]} 17. Rxh1 {[%clk 0:02:07]}  Bxh1 {[%clk 0:01:40]} 18. Bc5 {[%clk 0:02:04]}  Rc8 {[%clk 0:01:24]} 19. Bd6 {[%clk 0:01:54]}  f6 {[%clk 0:01:09]} 20. Qa7 {[%clk 0:01:45]}  Ra8 {[%clk 0:00:56]} 21. Qg1 {[%clk 0:01:20]}  Bc6 {[%clk 0:00:52]} 22. Qc5 {[%clk 0:01:16]}  Nc8 {[%clk 0:00:47]} 23. Bc7 {[%clk 0:01:01]}  Kf7 {[%clk 0:00:38]} 24. Ne2 {[%clk 0:00:57]}  Ne7 {[%clk 0:00:25]} 25. Nd4 {[%clk 0:00:53]}  Rhc8 {[%clk 0:00:25]} 26. Nxc6 {[%clk 0:00:37]}  Nxc6 {[%clk 0:00:22]} 27. Qd6 {[%clk 0:00:30]}  Ke8 {[%clk 0:00:19]} 28. exf6 {[%clk 0:00:25]}  gxf6 {[%clk 0:00:19]} 29. f5 {[%clk 0:00:25]}  Ne7 {[%clk 0:00:04]} 30. fxe6 {[%clk 0:00:22]}  dxe6 {[%clk 0:00:05]} 31. Ba5 {[%clk 0:00:19]}  Rc6 {[%clk 0:00:05]} 32. Qf4 {[%clk 0:00:18]}  Nd5 {[%clk 0:00:04]} 33. Qh6 {[%clk 0:00:17]}  Kd7 {[%clk 0:00:04]} 34. Qxh7+ {[%clk 0:00:17]}  Kd6 {[%clk 0:00:05]} 35. Bd2 {[%clk 0:00:16]}  Rac8 {[%clk 0:00:04]} 36. c3 {[%clk 0:00:16]}  Kc5 {[%clk 0:00:03]} 37. h4 {[%clk 0:00:16]}  Kb6 {[%clk 0:00:03]} 38. g5 {[%clk 0:00:16]}  fxg5 {[%clk 0:00:03]} 39. hxg5 {[%clk 0:00:16]}  R6c7 {[%clk 0:00:04]} 40. Qh2 {[%clk 0:00:15]}  Rg7 {[%clk 0:00:00]} 41. Qe2 {[%clk 0:00:15]} 1-0


[Site "https://www.chess.com"]

[Event "Titled Tuesday Blitz May 9 Early 2023"]
[White "Fajdetic, Hrvoje"]
[Black "ElenGajger"]
[WhiteFideId "14501945"]
[WhiteElo "2185"]
[BlackElo "2480"]
[Result "1-0"]
[Round "06"]
[TimeControl "180+2"]
[Date "2023.05.09"]
[WhiteClock "0:00:14"]
[BlackClock "0:00:27"]

1. d4 {[%clk 0:02:56]}  Nf6 {[%clk 0:02:59]} 2. Bf4 {[%clk 0:02:53]}  g6 {[%clk 0:03:00]} 3. Nc3 {[%clk 0:02:53]}  d5 {[%clk 0:02:59]} 4. e3 {[%clk 0:02:53]}  Bg7 {[%clk 0:02:58]} 5. h4 {[%clk 0:02:53]}  c5 {[%clk 0:02:55]} 6. Nb5 {[%clk 0:02:30]}  Na6 {[%clk 0:02:53]} 7. c3 {[%clk 0:02:26]}  Bd7 {[%clk 0:02:50]} 8. a4 {[%clk 0:02:25]}  Qb6 {[%clk 0:02:43]} 9. Nf3 {[%clk 0:02:17]}  O-O {[%clk 0:02:37]} 10. Ne5 {[%clk 0:02:15]}  Bc6 {[%clk 0:02:27]} 11. h5 {[%clk 0:02:09]}  Ne4 {[%clk 0:02:14]} 12. hxg6 {[%clk 0:02:00]}  hxg6 {[%clk 0:02:13]} 13. Qg4 {[%clk 0:01:48]}  cxd4 {[%clk 0:01:55]} 14. Qh3 {[%clk 0:01:23]}  Nf6 {[%clk 0:01:53]} 15. exd4 {[%clk 0:01:20]}  Rfc8 {[%clk 0:01:37]} 16. Bd3 {[%clk 0:01:01]}  Bxb5 {[%clk 0:01:33]} 17. axb5 {[%clk 0:00:58]}  Nc7 {[%clk 0:01:33]} 18. Nd7 {[%clk 0:00:34]}  Qe6+ {[%clk 0:01:22]} 19. Qxe6 {[%clk 0:00:33]}  fxe6 {[%clk 0:01:20]} 20. Nc5 {[%clk 0:00:29]}  Kf7 {[%clk 0:01:15]} 21. Nxb7 {[%clk 0:00:23]}  Rcb8 {[%clk 0:01:05]} 22. Na5 {[%clk 0:00:23]}  Rc8 {[%clk 0:01:03]} 23. Nc6 {[%clk 0:00:21]}  Nd7 {[%clk 0:00:49]} 24. Kd2 {[%clk 0:00:15]}  Nb6 {[%clk 0:00:35]} 25. Rxa7 {[%clk 0:00:13]}  Rxa7 {[%clk 0:00:34]} 26. Nxa7 {[%clk 0:00:14]}  Nc4+ {[%clk 0:00:31]} 27. Bxc4 {[%clk 0:00:14]}  dxc4 {[%clk 0:00:32]} 28. Nxc8 {[%clk 0:00:14]}  Nxb5 {[%clk 0:00:30]} 29. Be5 {[%clk 0:00:13]}  Bxe5 {[%clk 0:00:27]} 30. dxe5 {[%clk 0:00:14]} 1-0


[Site "https://www.chess.com"]

[Event "Titled Tuesday Blitz May 9 Early 2023"]
[White "Ardila, Oscar Humberto"]
[Black "Sowul, Bartosz"]
[WhiteFideId "4404742"]
[BlackFideId "1137590"]
[WhiteElo "1918"]
[BlackElo "2188"]
[Result "1-0"]
[Round "06"]
[TimeControl "180+2"]
[Date "2023.05.09"]
[WhiteClock "0:00:11"]
[BlackClock "0:00:00"]

1. d4 {[%clk 0:02:57]}  Nf6 {[%clk 0:03:00]} 2. c4 {[%clk 0:02:48]}  c5 {[%clk 0:02:59]} 3. dxc5 {[%clk 0:02:48]}  e6 {[%clk 0:02:59]} 4. Nf3 {[%clk 0:02:48]}  Bxc5 {[%clk 0:02:59]} 5. e3 {[%clk 0:02:45]}  O-O {[%clk 0:02:46]} 6. Be2 {[%clk 0:02:45]}  b6 {[%clk 0:02:46]} 7. O-O {[%clk 0:02:45]}  Bb7 {[%clk 0:02:47]} 8. Nc3 {[%clk 0:02:45]}  d5 {[%clk 0:02:45]} 9. Qc2 {[%clk 0:02:44]}  Qe7 {[%clk 0:02:43]} 10. Rd1 {[%clk 0:02:43]}  Nbd7 {[%clk 0:02:39]} 11. a3 {[%clk 0:02:38]}  Rac8 {[%clk 0:02:38]} 12. b4 {[%clk 0:02:34]}  Bd6 {[%clk 0:02:37]} 13. Nb5 {[%clk 0:02:28]}  Bb8 {[%clk 0:02:34]} 14. Bb2 {[%clk 0:02:19]}  dxc4 {[%clk 0:02:32]} 15. Rac1 {[%clk 0:01:53]}  a6 {[%clk 0:02:25]} 16. Nc3 {[%clk 0:01:51]}  Nd5 {[%clk 0:02:10]} 17. Nd4 {[%clk 0:01:44]}  N7f6 {[%clk 0:02:03]} 18. b5 {[%clk 0:01:34]}  a5 {[%clk 0:01:55]} 19. Bf3 {[%clk 0:01:11]}  Rfd8 {[%clk 0:01:23]} 20. h3 {[%clk 0:00:59]}  Bd6 {[%clk 0:01:00]} 21. Nxd5 {[%clk 0:00:49]}  Nxd5 {[%clk 0:00:55]} 22. a4 {[%clk 0:00:37]}  c3 {[%clk 0:00:34]} 23. Ba1 {[%clk 0:00:34]}  Nb4 {[%clk 0:00:33]} 24. Qb3 {[%clk 0:00:32]}  e5 {[%clk 0:00:26]} 25. Bxb7 {[%clk 0:00:29]}  Qxb7 {[%clk 0:00:26]} 26. Nf5 {[%clk 0:00:28]}  Bf8 {[%clk 0:00:22]} 27. Bxc3 {[%clk 0:00:28]}  Qe4 {[%clk 0:00:20]} 28. Rxd8 {[%clk 0:00:26]}  Rxd8 {[%clk 0:00:19]} 29. Bxb4 {[%clk 0:00:20]}  Bxb4 {[%clk 0:00:18]} 30. Ng3 {[%clk 0:00:18]}  Qg6 {[%clk 0:00:15]} 31. Rd1 {[%clk 0:00:18]}  Qf6 {[%clk 0:00:12]} 32. Rd5 {[%clk 0:00:16]}  h6 {[%clk 0:00:11]} 33. Qd3 {[%clk 0:00:16]}  Rc8 {[%clk 0:00:11]} 34. Kh2 {[%clk 0:00:15]}  Qxf2 {[%clk 0:00:10]} 35. Nf5 {[%clk 0:00:14]}  Re8 {[%clk 0:00:07]} 36. Rd8 {[%clk 0:00:12]}  Rxd8 {[%clk 0:00:07]} 37. Qxd8+ {[%clk 0:00:11]}  Kh7 {[%clk 0:00:07]} 38. Qd7 {[%clk 0:00:11]}  e4 {[%clk 0:00:00]} 39. Qxf7 {[%clk 0:00:11]} 1-0


[Site "https://www.chess.com"]